lending/lending_fUSD_20250719
["ID","MTS","AMOUNT","RATE_DAILY","PERIOD"]
[373336487,1752951066250,-480.0,0.00019397,2]
[373336488,1752951066260,-480.0,0.00019397,2]
[373336489,1752951066269,-480.0,0.00019397,2]
[373336490,1752951066279,-1651.28,0.00019397,2]
[373336491,1752951066289,-627.08,0.00019397,2]
[373336492,1752951066298,-480.0,0.00019397,2]
[373336493,1752951066308,-480.0,0.00019397,2]
[373336494,1752951066318,-5891.65,0.00019397,2]
[373336495,1752951066328,-480.0,0.00019397,2]
[373336496,1752951066337,-1630.02,0.00019397,2]
[373336497,1752951066347,-511.1,0.00019397,2]
[373336498,1752951066357,-1144.0,0.00019397,2]
[373336499,1752951066366,-480.0,0.00019397,2]
[373336500,1752951066376,-480.0,0.00019397,2]
[373336501,1752951066386,-669.42,0.00019397,2]
[373336502,1752951066395,-480.0,0.00019397,2]
[373336503,1752951066405,-480.0,0.00019397,2]
[373336504,1752951066415,-480.0,0.00019397,2]
[373336505,1752951066424,-480.0,0.00019397,2]
[373336506,1752951066434,-480.0,0.00019397,2]
[373336507,1752951066444,-480.0,0.00019397,2]
[373336508,1752951066454,-1202.06,0.00019397,2]
[373336509,1752951066464,-420.0,0.00019397,2]
[373336510,1752951066473,-2666.94,0.00019397,2]
[373336511,1752951066483,-480.0,0.00019397,2]
[373336512,1752951066493,-480.0,0.00019397,2]
[373336513,1752951066503,-480.0,0.00019397,2]
[373336514,1752951066513,-550.73,0.00019397,2]
[373336515,1752951066523,-1000.0,0.000194,3]
[373336516,1752951066533,-1000.0,0.000194,3]
[373336517,1752951066543,-5888.0,0.00019404,2]
[373336518,1752951066552,-500.0,0.00019405,2]
[373336519,1752951066562,-1975.62,0.00019405,2]
[373336520,1752951066572,-480.0,0.00019406,2]
[373336521,1752951066582,-480.0,0.00019406,2]
[373336522,1752951066592,-1104.86,0.00019406,2]
[373336523,1752951066602,-753.45,0.00019406,2]
[373336524,1752951066612,-1197.88,0.00019406,2]
[373336525,1752951066622,-958.92,0.00019406,2]
[373336526,1752951066632,-968.45,0.00019406,2]
[373336527,1752951066641,-746.62,0.00019406,2]
[373336528,1752951066652,-495.37,0.00019406,2]
[373336529,1752951066662,-4514.76,0.00019406,2]
[373336530,1752951066672,-2256.04,0.00019406,2]
[373336531,1752951066682,-648.95,0.00019406,2]
[373336532,1752951066693,-4885.78,0.00019406,2]
[373336533,1752951066704,-1020.41,0.00019406,2]
[373336534,1752951066715,-661.88,0.00019406,2]
[373336535,1752951066725,-905.31,0.00019406,2]
[373336536,1752951066736,-151.0,0.00019406,2]
[373336537,1752951066746,-3358.25,0.00019406,2]
[373336538,1752951066756,-2496.12,0.00019406,2]
[373336539,1752951066766,-2425.16,0.00019406,2]
[373336540,1752951066776,-831.12,0.00019406,2]
[373336541,1752951066786,-1000.0,0.00019406,2]
[373336542,1752951066796,-547.73,0.00019406,2]
[373336543,1752951066806,-3979.66,0.00019406,2]
[373336544,1752951066816,-1455.45,0.00019406,2]
[373336545,1752951066826,-1159.36,0.00019406,2]
[373336546,1752951066836,-151.0,0.00019406,2]
[373336547,1752951066845,-480.0,0.00019406,2]
[373336548,1752951066855,-1314.35,0.00019406,2]
[373336549,1752951066866,-1043.52,0.00019406,2]
[373336550,1752951066876,-5801.49,0.00019406,2]
[373336551,1752951066887,-1026.18,0.00019406,2]
[373336552,1752951066897,-151.0,0.00019406,2]
[373336553,1752951066907,-712.63,0.00019406,2]
[373336554,1752951066917,-2756.54,0.00019406,2]
[373336555,1752951066928,-769.91,0.00019406,2]
[373336556,1752951066938,-151.0,0.00019406,2]
[373336557,1752951066949,-24509.03,0.00019406,2]
[373336558,1752951066959,-151.0,0.00019406,2]
[373336559,1752951066970,-1679.68,0.00019406,2]
[373336560,1752951066984,-151.0,0.00019406,2]
[373336561,1752951066995,-3380.31,0.00019406,2]
[373336562,1752951067004,-737.78,0.00019406,2]
[373336563,1752951067014,-1532.83,0.00019406,2]
[373336564,1752951067024,-2274.47,0.00019406,2]
[373336565,1752951067035,-151.0,0.00019406,2]
[373336566,1752951067045,-151.0,0.00019406,2]
[373336567,1752951067055,-2456.14,0.00019406,2]
[373336568,1752951067065,-351.05,0.00019406,2]
[373336569,1752951067075,-3175.01,0.00019406,2]
[373336570,1752951067085,-151.0,0.00019406,2]
[373336571,1752951067095,-869.67,0.00019406,2]
[373336572,1752951067105,-151.0,0.00019406,2]
[373336573,1752951067115,-665.88416414,0.00019407,2]
[373336574,1752951067126,-816.95522359,0.00019407,2]
[373336575,1752951067136,-10897.01751213,0.00019415,2]
[373336576,1752951067147,-294.0,0.00019437,2]
[373336577,1752951067156,-9526.96,0.0001944,2]
[373336578,1752951067167,-294.0,0.00019442,2]
[373336579,1752951067177,-415.0,0.00019453,2]
[373336580,1752951067187,-265.62,0.00019481,2]
[373336581,1752951067196,-480.0,0.00019493,2]
[373336582,1752951067206,-480.0,0.00019493,2]
[373336583,1752951067216,-445.96548636,0.00019493,2]
[373336584,1752951067226,-480.0,0.00019493,2]
[373336585,1752951067235,-283.50699446,0.00019493,2]
[373336586,1752951339643,-325.0,0.00015481,3]
[373336587,1752951429046,329.0,0.0002501,120]
[373336588,1752951644044,250.0,0.00015,2]
[373336589,1752951736406,-217.0,0.00015481,3]
[373336591,1752951918109,-217.0,0.00015481,3]
[373336594,1752952231555,-371.2095,0.00016804,2]
[373336595,1752952231712,-144.7905,0.00016804,2]
[373336596,1752952231722,-200.83721811,0.00016915,2]
[373336597,1752952231732,-300.0,0.00017,2]
[373336598,1752952231742,-150.0,0.000175,2]
[373336599,1752952231751,-242.30116303,0.00017532,2]
[373336600,1752952231761,-150.0,0.00017532,2]
[373336601,1752952231770,-269.2,0.00017685,2]
[373336602,1752952231780,-666.0,0.0001816,2]
[373336603,1752952231789,-169.78,0.0001816,2]
[373336604,1752952231798,-500.0,0.00018173,2]
[373336605,1752952231807,-216.76,0.00018203,2]
[373336606,1752952231817,-169.78,0.00018205,2]
[373336607,1752952231826,-200.0,0.00018244,2]
[373336608,1752952231835,-169.78,0.0001825,2]
[373336609,1752952231845,-168.52,0.0001828,2]
[373336610,1752952231854,-165.99,0.00018288,2]
[373336611,1752952231863,-190.0,0.00018293,7]
[373336612,1752952231873,-169.78,0.00018296,2]
[373336613,1752952231882,-169.78,0.00018341,2]
[373336614,1752952231892,-299.94,0.00018364,2]
[373336615,1752952231901,-1000.0,0.00018383,2]
[373336616,1752952231911,-1200.0,0.00018443,2]
[373336617,1752952231921,-160.68,0.00018444,2]
[373336618,1752952231930,-300.0,0.00018486,2]
[373336619,1752952231940,-207.4,0.00018487,2]
[373336620,1752952231950,-1092.90654735,0.00018487,2]
[373336621,1752952231961,-6049.94945265,0.00018487,2]
[373336622,1752952231971,-516.0,0.00018604,4]
[373336623,1752952231980,-458.63,0.00018778,2]
[373336625,1752952231990,-150.0,0.0001878,2]
[373336627,1752952231999,-2592.58045571,0.00019,2]
[373336629,1752952232012,-2593.79053092,0.00019,2]
[373336630,1752952232034,-4339.19934746,0.00019,2]
[373336631,1752952232046,-1935.3225154,0.00019,2]
[373336632,1752952232059,-297.30778928,0.00019,2]
[373336636,1752952237719,-398.33978761,0.00018295,2]
[373336637,1752952237733,-247.04021239,0.00018295,2]
[373336638,1752952237743,-2160.64075121,0.00019,2]
[373336639,1752952237755,-1762.02368692,0.00019,2]
[373336640,1752952237767,-7544.63824423,0.00019,2]
[373336641,1752952237776,-6046.0,0.00019005,2]
[373336642,1752952237786,-862.0,0.00019005,2]
[373336643,1752952237796,-4123.0,0.00019005,2]
[373336644,1752952237807,-4850.57797048,0.00019005,2]
[373336645,1752952237838,-12202.95566854,0.00019005,2]
[373336646,1752952239647,-4307.46636098,0.00019005,2]
[373336647,1752952239658,-10.2087879,0.00019035,2]
[373336648,1752952240020,-342.01,0.00019035,2]
[373336664,1752952242662,-7054.9228841,0.00019035,2]
[373336665,1752952242672,-937.49516651,0.00019078,2]
[373336666,1752952242682,-454.55511238,0.00019078,2]
[373336667,1752952242691,-153.2556658,0.00019078,2]
[373336668,1752952242701,-2500.0,0.00019078,2]
[373336669,1752952242710,-8165.94,0.00019094,2]
[373336670,1752952242719,-949.980918,0.00019103,2]
[373336671,1752952242729,-346.92554585,0.00019166,2]
[373336672,1752952242738,-284.76,0.00019168,2]
[373336673,1752952242747,-454.55511236,0.00019175,2]
[373336674,1752952242756,-480.0,0.00019178,2]
[373336675,1752952242767,-480.0,0.00019178,2]
[373336676,1752952242777,-480.0,0.00019178,2]
[373336678,1752952242786,-480.0,0.00019178,2]
[373336680,1752952242795,-480.0,0.00019178,2]
[373336681,1752952242804,-260.0,0.00019178,2]
[373336682,1752952242814,-480.0,0.00019178,2]
[373336683,1752952242823,-480.0,0.00019178,2]
[373336684,1752952242833,-480.0,0.00019178,2]
[373336685,1752952242842,-480.0,0.00019178,2]
[373336686,1752952242852,-480.0,0.00019178,2]
[373336687,1752952242861,-480.0,0.00019178,2]
[373336688,1752952242871,-480.0,0.00019178,2]
[373336689,1752952242881,-480.0,0.00019178,2]
[373336690,1752952242890,-480.0,0.00019178,2]
[373336691,1752952242899,-480.0,0.00019178,2]
[373336692,1752952242909,-480.0,0.00019178,2]
[373336693,1752952242918,-460.0,0.00019178,2]
[373336694,1752952242928,-480.0,0.00019178,2]
[373336696,1752952242938,-480.0,0.00019178,2]
[373336697,1752952242948,-480.0,0.00019178,2]
[373336698,1752952242958,-307.80649112,0.00019178,2]
[373336699,1752952242968,-480.0,0.00019178,2]
[373336700,1752952242978,-460.0,0.00019178,2]
[373336701,1752952242987,-480.0,0.00019178,2]
[373336702,1752952242997,-480.0,0.00019178,2]
[373336703,1752952243007,-317.61105042,0.00019178,2]
[373336704,1752952243019,-480.0,0.00019178,2]
[373336705,1752952243030,-480.0,0.00019178,2]
[373336706,1752952243039,-480.0,0.00019178,2]
[373336707,1752952243050,-480.0,0.00019178,2]
[373336708,1752952243060,-480.0,0.00019178,2]
[373336709,1752952243069,-480.0,0.00019178,2]
[373336710,1752952243079,-480.0,0.00019178,2]
[373336711,1752952243088,-460.0,0.00019178,2]
[373336712,1752952243098,-480.0,0.00019178,2]
[373336713,1752952243107,-460.0,0.00019178,2]
[373336714,1752952243116,-460.0,0.00019178,2]
[373336715,1752952243126,-460.0,0.00019178,2]
[373336716,1752952243135,-480.0,0.00019178,2]
[373336717,1752952243145,-480.0,0.00019178,2]
[373336718,1752952243155,-480.0,0.00019178,2]
[373336719,1752952243164,-480.0,0.00019178,2]
[373336720,1752952243173,-480.0,0.00019178,2]
[373336721,1752952243182,-480.0,0.00019178,2]
[373336722,1752952243191,-480.0,0.00019178,2]
[373336723,1752952243201,-480.0,0.00019178,2]
[373336724,1752952243211,-480.0,0.00019178,2]
[373336725,1752952243221,-480.0,0.00019178,2]
[373336726,1752952243230,-460.0,0.00019178,2]
[373336727,1752952243239,-460.0,0.00019178,2]
[373336728,1752952243248,-563.12,0.00019178,2]
[373336729,1752952243258,-480.0,0.00019178,2]
[373336730,1752952243270,-480.0,0.00019178,2]
[373336731,1752952243280,-500.0,0.00019178,2]
[373336732,1752952243290,-689.65,0.00019178,2]
[373336733,1752952243299,-500.0,0.00019178,2]
[373336734,1752952243308,-480.0,0.00019178,2]
[373336735,1752952243318,-480.0,0.00019178,2]
[373336736,1752952243327,-330.40654276,0.00019178,2]
[373336737,1752952243337,-480.0,0.00019178,2]
[373336738,1752952243346,-480.0,0.00019178,2]
[373336739,1752952243356,-460.0,0.00019178,2]
[373336740,1752952243365,-480.0,0.00019178,2]
[373336741,1752952243375,-460.0,0.00019178,2]
[373336742,1752952243387,-480.0,0.00019178,2]
[373336743,1752952243397,-460.0,0.00019178,2]
[373336744,1752952243406,-480.0,0.00019178,2]
[373336745,1752952243416,-480.0,0.00019178,2]
[373336746,1752952243425,-460.0,0.00019178,2]
[373336747,1752952243435,-480.0,0.00019178,2]
[373336748,1752952243444,-480.0,0.00019178,2]
[373336749,1752952243453,-460.0,0.00019178,2]
[373336750,1752952243463,-514.35,0.00019178,2]
[373336751,1752952243472,-480.0,0.00019178,2]
[373336752,1752952243482,-480.0,0.00019178,2]
[373336753,1752952243491,-460.0,0.00019178,2]
[373336754,1752952243501,-480.0,0.00019178,2]
[373336755,1752952243511,-480.0,0.00019178,2]
[373336756,1752952243520,-480.0,0.00019178,2]
[373336757,1752952243530,-480.0,0.00019178,2]
[373336758,1752952243539,-556.41,0.00019178,2]
[373336759,1752952243550,-460.0,0.00019178,2]
[373336760,1752952243559,-480.0,0.00019178,2]
[373336761,1752952243569,-480.0,0.00019178,2]
[373336762,1752952243579,-480.0,0.00019178,2]
[373336763,1752952243589,-555.42265082,0.00019178,2]
[373336764,1752952243598,-610.23650958,0.00019178,2]
[373336765,1752952243607,-480.0,0.00019178,2]
[373336766,1752952243616,-460.0,0.00019178,2]
[373336767,1752952243626,-480.0,0.00019178,2]
[373336768,1752952243635,-526.83156687,0.00019178,2]
[373336769,1752952243645,-460.0,0.00019178,2]
[373336770,1752952243655,-480.0,0.00019178,2]
[373336771,1752952243664,-480.0,0.00019178,2]
[373336772,1752952243674,-480.0,0.00019178,2]
[373336773,1752952243685,-480.0,0.00019178,2]
[373336774,1752952243694,-480.0,0.00019178,2]
[373336775,1752952243703,-460.0,0.00019178,2]
[373336776,1752952243713,-480.0,0.00019178,2]
[373336777,1752952243724,-460.0,0.00019178,2]
[373336778,1752952243733,-480.0,0.00019178,2]
[373336779,1752952243743,-440.4264465,0.00019178,2]
[373336780,1752952243764,-19.5735535,0.00019178,2]
[373336781,1752952243774,-480.0,0.00019178,2]
[373336782,1752952243784,-442.62935386,0.00019178,2]
[373336783,1752952243849,-17.37064614,0.00019178,2]
[373336784,1752952243858,-480.0,0.00019178,2]
[373336785,1752952243867,-480.0,0.00019178,2]
[373336786,1752952243876,-460.0,0.00019178,2]
[373336787,1752952243885,-511.08395092,0.00019178,2]
[373336788,1752952243894,-480.0,0.00019178,2]
[373336789,1752952243903,-480.0,0.00019178,2]
[373336790,1752952243912,-480.0,0.00019178,2]
[373336791,1752952243922,-563.58359031,0.00019178,2]
[373336792,1752952243931,-460.0,0.00019178,2]
[373336793,1752952243940,-480.0,0.00019178,2]
[373336794,1752952243949,-480.0,0.00019178,2]
[373336795,1752952243958,-480.0,0.00019178,2]
[373336796,1752952243968,-480.0,0.00019178,2]
[373336797,1752952243978,-480.0,0.00019178,2]
[373336798,1752952243987,-952.25,0.00019178,2]
[373336799,1752952243996,-480.0,0.00019178,2]
[373336800,1752952244005,-166.20882625,0.00019178,2]
[373336801,1752952244014,-670.33,0.00019178,2]
[373336802,1752952244024,-941.99,0.00019178,2]
[373336803,1752952244033,-460.0,0.00019178,2]
[373336804,1752952244042,-460.0,0.00019178,2]
[373336805,1752952244051,-480.0,0.00019178,2]
[373336806,1752952244060,-480.0,0.00019178,2]
[373336807,1752952244069,-460.0,0.00019178,2]
[373336808,1752952244078,-580.0,0.00019178,2]
[373336809,1752952244088,-480.0,0.00019178,2]
[373336810,1752952244097,-480.0,0.00019178,2]
[373336811,1752952244106,-460.0,0.00019178,2]
[373336812,1752952244118,-480.0,0.00019178,2]
[373336813,1752952244127,-480.0,0.00019178,2]
[373336814,1752952244136,-480.0,0.00019178,2]
[373336815,1752952244145,-480.0,0.00019178,2]
[373336816,1752952244154,-480.0,0.00019178,2]
[373336817,1752952244164,-480.0,0.00019178,2]
[373336818,1752952244173,-460.0,0.00019178,2]
[373336819,1752952244183,-480.0,0.00019178,2]
[373336820,1752952244193,-480.0,0.00019178,2]
[373336821,1752952244203,-460.0,0.00019178,2]
[373336822,1752952244213,-480.0,0.00019178,2]
[373336823,1752952244224,-480.0,0.00019178,2]
[373336824,1752952244239,-480.0,0.00019178,2]
[373336825,1752952244248,-504.18863023,0.00019178,2]
[373336826,1752952244258,-460.0,0.00019178,2]
[373336827,1752952244267,-480.0,0.00019178,2]
[373336828,1752952244276,-480.0,0.00019178,2]
[373336829,1752952244286,-460.0,0.00019178,2]
[373336830,1752952244295,-480.0,0.00019178,2]
[373336831,1752952244304,-480.0,0.00019178,2]
[373336832,1752952244313,-480.0,0.00019178,2]
[373336833,1752952244323,-480.0,0.00019178,2]
[373336834,1752952244333,-460.0,0.00019178,2]
[373336835,1752952244342,-480.0,0.00019178,2]
[373336836,1752952244351,-623.21,0.00019178,2]
[373336837,1752952244361,-480.0,0.00019178,2]
[373336838,1752952244370,-460.0,0.00019178,2]
[373336839,1752952244382,-479.87123556,0.00019178,2]
[373336840,1752952244392,-480.0,0.00019178,2]
[373336841,1752952244401,-542.39,0.00019178,2]
[373336842,1752952244410,-480.0,0.00019178,2]
[373336843,1752952244420,-480.0,0.00019178,2]
[373336844,1752952244430,-480.0,0.00019178,2]
[373336845,1752952244439,-460.0,0.00019178,2]
[373336846,1752952244449,-480.0,0.00019178,2]
[373336847,1752952244462,-460.0,0.00019178,2]
[373336848,1752952244473,-480.0,0.00019178,2]
[373336849,1752952244483,-460.0,0.00019178,2]
[373336850,1752952244492,-887.69,0.00019178,2]
[373336851,1752952244501,-526.92,0.00019178,2]
[373336852,1752952244510,-480.0,0.00019178,2]
[373336853,1752952244521,-480.0,0.00019178,2]
[373336854,1752952244530,-260.0,0.00019178,2]
[373336855,1752952244539,-480.0,0.00019178,2]
[373336856,1752952244548,-460.0,0.00019178,2]
[373336857,1752952244557,-480.0,0.00019178,2]
[373336858,1752952244567,-480.0,0.00019178,2]
[373336859,1752952244576,-480.0,0.00019178,2]
[373336860,1752952244585,-460.0,0.00019178,2]
[373336861,1752952244594,-480.0,0.00019178,2]
[373336862,1752952244604,-480.0,0.00019178,2]
[373336863,1752952244613,-480.0,0.00019178,2]
[373336864,1752952244622,-480.0,0.00019178,2]
[373336865,1752952244631,-480.0,0.00019178,2]
[373336866,1752952244640,-480.0,0.00019178,2]
[373336867,1752952244649,-480.0,0.00019178,2]
[373336868,1752952244659,-510.94,0.00019178,2]
[373336869,1752952244668,-460.0,0.00019178,2]
[373336870,1752952244677,-480.0,0.00019178,2]
[373336871,1752952244686,-480.0,0.00019178,2]
[373336872,1752952244696,-460.0,0.00019178,2]
[373336873,1752952244705,-480.0,0.00019178,2]
[373336874,1752952244714,-460.0,0.00019178,2]
[373336875,1752952244724,-480.0,0.00019178,2]
[373336876,1752952244733,-460.0,0.00019178,2]
[373336877,1752952244743,-480.0,0.00019178,2]
[373336878,1752952244752,-460.0,0.00019178,2]
[373336879,1752952244762,-480.0,0.00019178,2]
[373336880,1752952244772,-480.0,0.00019178,2]
[373336881,1752952244781,-460.0,0.00019178,2]
[373336882,1752952244790,-460.0,0.00019178,2]
[373336883,1752952244800,-460.0,0.00019178,2]
[373336884,1752952244809,-480.0,0.00019178,2]
[373336885,1752952244819,-196.70812801,0.00019178,2]
[373336886,1752952244828,-480.0,0.00019178,2]
[373336887,1752952244837,-480.0,0.00019178,2]
[373336888,1752952244847,-480.0,0.00019178,2]
[373336889,1752952244857,-480.0,0.00019178,2]
[373336890,1752952244866,-460.0,0.00019178,2]
[373336891,1752952244876,-480.0,0.00019178,2]
[373336892,1752952244885,-460.0,0.00019178,2]
[373336893,1752952244894,-480.0,0.00019178,2]
[373336894,1752952244904,-668.41,0.00019178,2]
[373336895,1752952244913,-460.0,0.00019178,2]
[373336896,1752952244923,-480.0,0.00019178,2]
[373336897,1752952244932,-526.67,0.00019178,2]
[373336898,1752952244941,-508.57,0.00019178,2]
[373336899,1752952244952,-460.0,0.00019178,2]
[373336900,1752952244961,-460.0,0.00019178,2]
[373336901,1752952244971,-460.0,0.00019178,2]
[373336902,1752952244980,-460.0,0.00019178,2]
[373336903,1752952244990,-480.0,0.00019178,2]
[373336904,1752952244999,-460.0,0.00019178,2]
[373336905,1752952245008,-480.0,0.00019178,2]
[373336906,1752952245018,-711.02,0.00019178,2]
[373336907,1752952245027,-480.0,0.00019178,2]
[373336908,1752952245037,-460.0,0.00019178,2]
[373336909,1752952245046,-480.0,0.00019178,2]
[373336910,1752952245055,-480.0,0.00019178,2]
[373336911,1752952245065,-480.0,0.00019178,2]
[373336912,1752952245074,-480.0,0.00019178,2]
[373336913,1752952245084,-460.0,0.00019178,2]
[373336914,1752952245093,-480.0,0.00019178,2]
[373336915,1752952245103,-1531.26,0.00019178,2]
[373336916,1752952245112,-480.0,0.00019178,2]
[373336917,1752952245122,-723.34,0.00019178,2]
[373336918,1752952245131,-460.0,0.00019178,2]
[373336919,1752952245141,-212.07212583,0.00019178,2]
[373336920,1752952245150,-460.0,0.00019178,2]
[373336921,1752952245159,-460.0,0.00019178,2]
[373336922,1752952245168,-460.0,0.00019178,2]
[373336923,1752952245178,-480.0,0.00019178,2]
[373336924,1752952245187,-480.0,0.00019178,2]
[373336925,1752952245196,-480.0,0.00019178,2]
[373336926,1752952245205,-480.0,0.00019178,2]
[373336927,1752952245214,-480.0,0.00019178,2]
[373336928,1752952245223,-480.0,0.00019178,2]
[373336929,1752952245233,-480.0,0.00019178,2]
[373336930,1752952245242,-480.0,0.00019178,2]
[373336931,1752952245252,-1138.89,0.00019178,2]
[373336932,1752952245261,-480.0,0.00019178,2]
[373336933,1752952245271,-480.0,0.00019178,2]
[373336934,1752952245280,-575.65797112,0.00019178,2]
[373336935,1752952245289,-480.0,0.00019178,2]
[373336936,1752952245298,-480.0,0.00019178,2]
[373336937,1752952245308,-480.0,0.00019178,2]
[373336938,1752952245317,-460.0,0.00019178,2]
[373336939,1752952245326,-547.66,0.00019178,2]
[373336940,1752952245335,-480.0,0.00019178,2]
[373336941,1752952245345,-480.0,0.00019178,2]
[373336942,1752952245355,-460.0,0.00019178,2]
[373336943,1752952245364,-460.0,0.00019178,2]
[373336944,1752952245373,-460.0,0.00019178,2]
[373336945,1752952245386,-480.0,0.00019178,2]
[373336946,1752952245396,-480.0,0.00019178,2]
[373336947,1752952245405,-480.0,0.00019178,2]
[373336948,1752952245415,-480.0,0.00019178,2]
[373336949,1752952245424,-480.0,0.00019178,2]
[373336950,1752952245434,-480.0,0.00019178,2]
[373336951,1752952245443,-480.0,0.00019178,2]
[373336952,1752952245453,-480.0,0.00019178,2]
[373336953,1752952245462,-480.0,0.00019178,2]
[373336954,1752952245471,-480.0,0.00019178,2]
[373336955,1752952245481,-480.0,0.00019178,2]
[373336956,1752952245491,-480.0,0.00019178,2]
[373336957,1752952245500,-460.0,0.00019178,2]
[373336958,1752952245509,-480.0,0.00019178,2]
[373336959,1752952245519,-460.0,0.00019178,2]
[373336960,1752952245528,-460.0,0.00019178,2]
[373336961,1752952245537,-480.0,0.00019178,2]
[373336962,1752952245547,-480.0,0.00019178,2]
[373336963,1752952245557,-480.0,0.00019178,2]
[373336964,1752952245566,-480.0,0.00019178,2]
[373336965,1752952245575,-480.0,0.00019178,2]
[373336966,1752952245584,-480.0,0.00019178,2]
[373336967,1752952245594,-480.0,0.00019178,2]
[373336968,1752952245603,-619.13,0.00019178,2]
[373336969,1752952245613,-480.0,0.00019178,2]
[373336970,1752952245622,-480.0,0.00019178,2]
[373336971,1752952245632,-480.0,0.00019178,2]
[373336972,1752952245642,-480.0,0.00019178,2]
[373336973,1752952245651,-480.0,0.00019178,2]
[373336974,1752952245661,-480.0,0.00019178,2]
[373336975,1752952245672,-480.0,0.00019178,2]
[373336976,1752952245682,-480.0,0.00019178,2]
[373336977,1752952245692,-480.0,0.00019178,2]
[373336978,1752952245703,-480.0,0.00019178,2]
[373336979,1752952245712,-480.0,0.00019178,2]
[373336980,1752952245722,-480.0,0.00019178,2]
[373336981,1752952245733,-480.0,0.00019178,2]
[373336982,1752952245743,-897.54,0.00019178,2]
[373336983,1752952245752,-460.0,0.00019178,2]
[373336984,1752952245762,-460.0,0.00019178,2]
[373336985,1752952245771,-480.0,0.00019178,2]
[373336986,1752952245782,-480.0,0.00019178,2]
[373336987,1752952245791,-480.0,0.00019178,2]
[373336988,1752952245801,-480.0,0.00019178,2]
[373336989,1752952245811,-480.0,0.00019178,2]
[373336990,1752952245820,-220.55804258,0.00019178,2]
[373336991,1752952245829,-480.0,0.00019178,2]
[373336992,1752952245839,-460.0,0.00019178,2]
[373336993,1752952245848,-480.0,0.00019178,2]
[373336994,1752952245858,-676.49,0.00019178,2]
[373336995,1752952245867,-480.0,0.00019178,2]
[373336996,1752952245876,-480.0,0.00019178,2]
[373336997,1752952245886,-480.0,0.00019178,2]
[373336998,1752952245896,-588.64,0.00019178,2]
[373336999,1752952245905,-480.0,0.00019178,2]
[373337000,1752952245915,-480.0,0.00019178,2]
[373337001,1752952245925,-725.51,0.00019178,2]
[373337002,1752952245934,-480.0,0.00019178,2]
[373337003,1752952245944,-554.44,0.00019178,2]
[373337004,1752952245953,-480.0,0.00019178,2]
[373337005,1752952245963,-480.0,0.00019178,2]
[373337006,1752952245973,-460.0,0.00019178,2]
[373337007,1752952245983,-480.0,0.00019178,2]
[373337008,1752952245993,-480.0,0.00019178,2]
[373337009,1752952246002,-480.0,0.00019178,2]
[373337010,1752952246012,-480.0,0.00019178,2]
[373337011,1752952246021,-460.0,0.00019178,2]
[373337012,1752952246031,-480.0,0.00019178,2]
[373337013,1752952246040,-480.0,0.00019178,2]